[Event "Titled Tuesday Blitz February 15 Late 2022"]
[White "Suarez Uriel, Adrian"]
[Black "Mekhitarian, Krikor Sevag"]
[WhiteFideId "22230874"]
[BlackFideId "2107660"]
[WhiteElo "2316"]
[BlackElo "2598"]
[Result "0-1"]
[Round "01"]
[TimeControl "180+1"]
[Date "2022.02.15"]
[WhiteClock "0:00:03"]
[BlackClock "0:00:08"]

1. e4 {[%clk 0:02:59]}  c5 {[%clk 0:02:54]} 2. Ne2 {[%clk 0:02:59]}  g6 {[%clk 0:02:44]} 3. d4 {[%clk 0:02:57]}  cxd4 {[%clk 0:02:44]} 4. Nxd4 {[%clk 0:02:58]}  Nc6 {[%clk 0:02:44]} 5. c4 {[%clk 0:02:57]}  Nf6 {[%clk 0:02:44]} 6. Nc3 {[%clk 0:02:57]}  d6 {[%clk 0:02:43]} 7. Be2 {[%clk 0:02:56]}  Nxd4 {[%clk 0:02:43]} 8. Qxd4 {[%clk 0:02:56]}  Bg7 {[%clk 0:02:43]} 9. Be3 {[%clk 0:02:56]}  O-O {[%clk 0:02:43]} 10. Qd2 {[%clk 0:02:56]}  a5 {[%clk 0:02:44]} 11. O-O {[%clk 0:02:41]}  a4 {[%clk 0:02:43]} 12. f3 {[%clk 0:02:39]}  Be6 {[%clk 0:02:32]} 13. Rac1 {[%clk 0:02:38]}  Qa5 {[%clk 0:02:31]} 14. Nd5 {[%clk 0:02:34]}  Qxd2 {[%clk 0:02:28]} 15. Bxd2 {[%clk 0:02:33]}  Nxd5 {[%clk 0:02:17]} 16. cxd5 {[%clk 0:02:33]}  Bd4+ {[%clk 0:02:17]} 17. Kh1 {[%clk 0:02:33]}  Bd7 {[%clk 0:02:17]} 18. Rc7 {[%clk 0:02:32]}  Rfd8 {[%clk 0:02:16]} 19. a3 {[%clk 0:01:54]}  Bxb2 {[%clk 0:02:10]} 20. Bb4 {[%clk 0:01:47]}  b5 {[%clk 0:02:00]} 21. Rb1 {[%clk 0:01:43]}  Bd4 {[%clk 0:01:59]} 22. g3 {[%clk 0:01:40]}  Bb6 {[%clk 0:01:54]} 23. Rb7 {[%clk 0:01:39]}  Rab8 {[%clk 0:01:54]} 24. Rxb8 {[%clk 0:01:39]}  Rxb8 {[%clk 0:01:55]} 25. Kg2 {[%clk 0:01:35]}  Bc5 {[%clk 0:01:51]} 26. Bd3 {[%clk 0:01:35]}  Bxb4 {[%clk 0:01:32]} 27. Rxb4 {[%clk 0:01:36]}  e5 {[%clk 0:01:32]} 28. dxe6 {[%clk 0:01:33]}  fxe6 {[%clk 0:01:32]} 29. Kf2 {[%clk 0:01:34]}  Kf8 {[%clk 0:01:28]} 30. Ke3 {[%clk 0:01:32]}  Ke7 {[%clk 0:01:28]} 31. f4 {[%clk 0:01:31]}  e5 {[%clk 0:01:27]} 32. Bc2 {[%clk 0:01:24]}  Rc8 {[%clk 0:01:25]} 33. Kd2 {[%clk 0:01:25]}  Rc5 {[%clk 0:01:19]} 34. Bd3 {[%clk 0:01:25]}  exf4 {[%clk 0:01:19]} 35. gxf4 {[%clk 0:01:25]}  Rh5 {[%clk 0:01:20]} 36. Ke3 {[%clk 0:01:20]}  Rc5 {[%clk 0:00:47]} 37. Kd4 {[%clk 0:01:18]}  Bc6 {[%clk 0:00:46]} 38. h4 {[%clk 0:01:12]}  Rh5 {[%clk 0:00:44]} 39. Be2 {[%clk 0:01:07]}  Rxh4 {[%clk 0:00:44]} 40. Bxb5 {[%clk 0:01:06]}  Bxb5 {[%clk 0:00:44]} 41. Rxb5 {[%clk 0:01:07]}  Rxf4 {[%clk 0:00:41]} 42. Rb7+ {[%clk 0:01:07]}  Ke6 {[%clk 0:00:40]} 43. Rxh7 {[%clk 0:01:08]}  Rf3 {[%clk 0:00:40]} 44. Rg7 {[%clk 0:01:08]}  Rg3 {[%clk 0:00:37]} 45. Rg8 {[%clk 0:01:04]}  Kf7 {[%clk 0:00:34]} 46. Rd8 {[%clk 0:01:04]}  Ke7 {[%clk 0:00:35]} 47. Rg8 {[%clk 0:01:04]}  Ke6 {[%clk 0:00:29]} 48. Rg7 {[%clk 0:01:04]}  Rg1 {[%clk 0:00:24]} 49. Ra7 {[%clk 0:01:01]}  Rd1+ {[%clk 0:00:19]} 50. Ke3 {[%clk 0:01:00]}  Re1+ {[%clk 0:00:17]} 51. Kf4 {[%clk 0:01:00]}  g5+ {[%clk 0:00:13]} 52. Kf3 {[%clk 0:00:55]}  g4+ {[%clk 0:00:13]} 53. Kf4 {[%clk 0:00:55]}  g3 {[%clk 0:00:13]} 54. Kxg3 {[%clk 0:00:51]}  Rxe4 {[%clk 0:00:12]} 55. Kf3 {[%clk 0:00:51]}  d5 {[%clk 0:00:12]} 56. Ra8 {[%clk 0:00:49]}  Ke5 {[%clk 0:00:12]} 57. Ra7 {[%clk 0:00:47]}  Rh4 {[%clk 0:00:11]} 58. Ke2 {[%clk 0:00:45]}  Ke4 {[%clk 0:00:07]} 59. Rxa4+ {[%clk 0:00:44]}  d4 {[%clk 0:00:08]} 60. Rb4 {[%clk 0:00:41]}  Rh2+ {[%clk 0:00:08]} 61. Kf1 {[%clk 0:00:30]}  Ke3 {[%clk 0:00:09]} 62. Rb8 {[%clk 0:00:25]}  Rh1+ {[%clk 0:00:08]} 63. Kg2 {[%clk 0:00:25]}  Ra1 {[%clk 0:00:09]} 64. Re8+ {[%clk 0:00:16]}  Kd2 {[%clk 0:00:09]} 65. Kf3 {[%clk 0:00:13]}  d3 {[%clk 0:00:10]} 66. Rh8 {[%clk 0:00:10]}  Rf1+ {[%clk 0:00:06]} 67. Ke4 {[%clk 0:00:09]}  Kc2 {[%clk 0:00:06]} 68. Rc8+ {[%clk 0:00:09]}  Kd2 {[%clk 0:00:06]} 69. a4 {[%clk 0:00:05]}  Re1+ {[%clk 0:00:04]} 70. Kf3 {[%clk 0:00:02]}  Kd1 {[%clk 0:00:03]} 71. Rd8 {[%clk 0:00:02]}  d2 {[%clk 0:00:04]} 72. a5 {[%clk 0:00:03]}  Re6 {[%clk 0:00:04]} 73. Kf2 {[%clk 0:00:02]}  Ra6 {[%clk 0:00:04]} 74. Rd5 {[%clk 0:00:02]}  Kc2 {[%clk 0:00:05]} 75. Rc5+ {[%clk 0:00:02]}  Kd3 {[%clk 0:00:04]} 76. Rd5+ {[%clk 0:00:03]}  Kc3 {[%clk 0:00:05]} 77. Ke2 {[%clk 0:00:02]}  Re6+ {[%clk 0:00:05]} 78. Kf2 {[%clk 0:00:02]}  Re1 {[%clk 0:00:06]} 79. a6 {[%clk 0:00:02]}  d1=Q {[%clk 0:00:06]} 80. Rxd1 {[%clk 0:00:01]}  Rxd1 {[%clk 0:00:07]} 81. a7 {[%clk 0:00:02]}  Ra1 {[%clk 0:00:08]} 82. a8=Q {[%clk 0:00:03]}  Rxa8 {[%clk 0:00:08]} 0-1


[Site "https://www.chess.com"]

[Event "Titled Tuesday Blitz February 15 Late 2022"]
[White "Svane, Rasmus"]
[Black "Papayan, Oleg"]
[WhiteFideId "4657101"]
[BlackFideId "4193911"]
[WhiteElo "2645"]
[BlackElo "2038"]
[Result "1-0"]
[Round "01"]
[TimeControl "180+1"]
[Date "2022.02.15"]
[WhiteClock "0:01:11"]
[BlackClock "0:00:01"]

1. Nf3 {[%clk 0:03:00]}  Nf6 {[%clk 0:02:55]} 2. g3 {[%clk 0:02:59]}  d5 {[%clk 0:02:51]} 3. Bg2 {[%clk 0:02:59]}  Nc6 {[%clk 0:02:50]} 4. d4 {[%clk 0:02:59]}  Bf5 {[%clk 0:02:49]} 5. O-O {[%clk 0:02:58]}  e6 {[%clk 0:02:48]} 6. c4 {[%clk 0:02:54]}  Be7 {[%clk 0:02:40]} 7. Nc3 {[%clk 0:02:54]}  O-O {[%clk 0:02:40]} 8. b3 {[%clk 0:02:44]}  Ne4 {[%clk 0:02:30]} 9. Bb2 {[%clk 0:02:44]}  Nxc3 {[%clk 0:02:25]} 10. Bxc3 {[%clk 0:02:45]}  Be4 {[%clk 0:02:17]} 11. e3 {[%clk 0:02:42]}  Bb4 {[%clk 0:02:10]} 12. Qd2 {[%clk 0:02:37]}  Qe7 {[%clk 0:02:02]} 13. a3 {[%clk 0:02:31]}  Bxc3 {[%clk 0:01:32]} 14. Qxc3 {[%clk 0:02:32]}  Qf6 {[%clk 0:01:26]} 15. Nd2 {[%clk 0:02:17]}  Bxg2 {[%clk 0:01:26]} 16. Kxg2 {[%clk 0:02:18]}  Rad8 {[%clk 0:01:13]} 17. Nf3 {[%clk 0:02:12]}  Rfe8 {[%clk 0:01:01]} 18. Rfd1 {[%clk 0:02:09]}  h6 {[%clk 0:00:37]} 19. b4 {[%clk 0:02:09]}  Ne7 {[%clk 0:00:30]} 20. a4 {[%clk 0:02:04]}  c6 {[%clk 0:00:29]} 21. Rab1 {[%clk 0:02:00]}  a6 {[%clk 0:00:21]} 22. Qb3 {[%clk 0:01:55]}  Ng6 {[%clk 0:00:19]} 23. b5 {[%clk 0:01:55]}  axb5 {[%clk 0:00:20]} 24. cxb5 {[%clk 0:01:50]}  e5 {[%clk 0:00:16]} 25. bxc6 {[%clk 0:01:49]}  bxc6 {[%clk 0:00:17]} 26. a5 {[%clk 0:01:49]}  e4 {[%clk 0:00:14]} 27. Nd2 {[%clk 0:01:42]}  Ra8 {[%clk 0:00:13]} 28. Ra1 {[%clk 0:01:40]}  Ra6 {[%clk 0:00:12]} 29. Qc3 {[%clk 0:01:38]}  h5 {[%clk 0:00:08]} 30. h4 {[%clk 0:01:30]}  Qf5 {[%clk 0:00:05]} 31. Rdb1 {[%clk 0:01:27]}  Qg4 {[%clk 0:00:05]} 32. Kf1 {[%clk 0:01:28]}  Qh3+ {[%clk 0:00:04]} 33. Ke2 {[%clk 0:01:26]}  Re6 {[%clk 0:00:04]} 34. Rb6 {[%clk 0:01:23]}  Qg4+ {[%clk 0:00:02]} 35. Ke1 {[%clk 0:01:23]}  Ra8 {[%clk 0:00:02]} 36. a6 {[%clk 0:01:14]}  Qh3 {[%clk 0:00:02]} 37. a7 {[%clk 0:01:13]}  Qh1+ {[%clk 0:00:01]} 38. Ke2 {[%clk 0:01:11]} 1-0


[Site "https://www.chess.com"]

[Event "Titled Tuesday Blitz February 15 Late 2022"]
[White "Tang, Andrew"]
[Black "Przybylski, Wojciech"]
[WhiteFideId "2059630"]
[BlackFideId "1117599"]
[WhiteElo "2584"]
[BlackElo "2133"]
[Result "1-0"]
[Round "01"]
[TimeControl "180+1"]
[Date "2022.02.15"]
[WhiteClock "0:00:07"]
[BlackClock "0:00:01"]

1. d4 {[%clk 0:02:49]}  Nf6 {[%clk 0:02:58]} 2. c4 {[%clk 0:02:49]}  e6 {[%clk 0:02:58]} 3. Nc3 {[%clk 0:02:49]}  Bb4 {[%clk 0:02:57]} 4. Qc2 {[%clk 0:02:49]}  d5 {[%clk 0:02:56]} 5. cxd5 {[%clk 0:02:49]}  Qxd5 {[%clk 0:02:54]} 6. Nf3 {[%clk 0:02:50]}  Qf5 {[%clk 0:02:25]} 7. Qb3 {[%clk 0:02:50]}  Nc6 {[%clk 0:02:23]} 8. Bd2 {[%clk 0:02:49]}  O-O {[%clk 0:02:21]} 9. h3 {[%clk 0:02:41]}  h6 {[%clk 0:02:19]} 10. g4 {[%clk 0:02:32]}  Qg6 {[%clk 0:02:13]} 11. Bg2 {[%clk 0:01:44]}  Bd6 {[%clk 0:02:07]} 12. O-O {[%clk 0:01:31]}  Ne4 {[%clk 0:01:39]} 13. Nxe4 {[%clk 0:00:48]}  Qxe4 {[%clk 0:01:39]} 14. e3 {[%clk 0:00:49]}  Qg6 {[%clk 0:01:18]} 15. Rfe1 {[%clk 0:00:48]}  h5 {[%clk 0:01:08]} 16. g5 {[%clk 0:00:42]}  h4 {[%clk 0:00:57]} 17. e4 {[%clk 0:00:33]}  e5 {[%clk 0:00:55]} 18. dxe5 {[%clk 0:00:22]}  Nxe5 {[%clk 0:00:54]} 19. Nxh4 {[%clk 0:00:22]}  Qh7 {[%clk 0:00:43]} 20. Nf3 {[%clk 0:00:12]}  Bxh3 {[%clk 0:00:34]} 21. Nxe5 {[%clk 0:00:12]}  Bxg2 {[%clk 0:00:33]} 22. Kxg2 {[%clk 0:00:13]}  Bxe5 {[%clk 0:00:33]} 23. f4 {[%clk 0:00:14]}  Bd6 {[%clk 0:00:29]} 24. Qf3 {[%clk 0:00:14]}  f5 {[%clk 0:00:15]} 25. e5 {[%clk 0:00:13]}  Be7 {[%clk 0:00:13]} 26. Qxb7 {[%clk 0:00:07]}  Rad8 {[%clk 0:00:12]} 27. Bc3 {[%clk 0:00:06]}  Rd3 {[%clk 0:00:09]} 28. Rh1 {[%clk 0:00:06]}  Qg6 {[%clk 0:00:08]} 29. Rad1 {[%clk 0:00:06]}  Rxd1 {[%clk 0:00:06]} 30. Rxd1 {[%clk 0:00:07]}  Qe6 {[%clk 0:00:05]} 31. Qxc7 {[%clk 0:00:06]}  g6 {[%clk 0:00:04]} 32. Qd7 {[%clk 0:00:05]}  Qxd7 {[%clk 0:00:01]} 33. Rxd7 {[%clk 0:00:06]}  Rf7 {[%clk 0:00:02]} 34. e6 {[%clk 0:00:07]}  Rh7 {[%clk 0:00:01]} 35. Rxa7 {[%clk 0:00:07]}  Bd6 {[%clk 0:00:01]} 36. Ra8+ {[%clk 0:00:06]}  Bf8 {[%clk 0:00:01]} 37. Bb4 {[%clk 0:00:07]} 1-0


[Site "https://www.chess.com"]

[Event "Titled Tuesday Blitz February 15 Late 2022"]
[White "Terletsky, Oleg"]
[Black "Matinian, Nikita"]
[WhiteFideId "14116774"]
[BlackFideId "24129100"]
[WhiteElo "2050"]
[BlackElo "2422"]
[Result "0-1"]
[Round "01"]
[TimeControl "180+1"]
[Date "2022.02.16"]
[WhiteClock "0:00:07"]
[BlackClock "0:01:56"]

1. e4 {[%clk 0:03:00]}  c5 {[%clk 0:02:59]} 2. Nf3 {[%clk 0:02:54]}  e6 {[%clk 0:02:59]} 3. d4 {[%clk 0:02:55]}  cxd4 {[%clk 0:02:59]} 4. Nxd4 {[%clk 0:02:55]}  Nc6 {[%clk 0:03:00]} 5. Nb5 {[%clk 0:02:54]}  Nf6 {[%clk 0:02:53]} 6. N1c3 {[%clk 0:02:51]}  d6 {[%clk 0:02:52]} 7. Bf4 {[%clk 0:02:49]}  e5 {[%clk 0:02:52]} 8. Bg5 {[%clk 0:02:50]}  a6 {[%clk 0:02:53]} 9. Na3 {[%clk 0:02:50]}  b5 {[%clk 0:02:53]} 10. Nd5 {[%clk 0:02:51]}  Be7 {[%clk 0:02:52]} 11. Bxf6 {[%clk 0:02:51]}  Bxf6 {[%clk 0:02:53]} 12. c3 {[%clk 0:02:52]}  Ne7 {[%clk 0:02:45]} 13. Nxf6+ {[%clk 0:02:47]}  gxf6 {[%clk 0:02:46]} 14. Nc2 {[%clk 0:02:39]}  Bb7 {[%clk 0:02:46]} 15. Bd3 {[%clk 0:02:38]}  d5 {[%clk 0:02:45]} 16. exd5 {[%clk 0:02:38]}  Nxd5 {[%clk 0:02:44]} 17. Be4 {[%clk 0:02:20]}  f5 {[%clk 0:02:40]} 18. Bxf5 {[%clk 0:01:50]}  Qg5 {[%clk 0:02:38]} 19. Qg4 {[%clk 0:01:44]}  Qxg4 {[%clk 0:02:35]} 20. Bxg4 {[%clk 0:01:45]}  Nf4 {[%clk 0:02:35]} 21. Ne3 {[%clk 0:01:42]}  Nxg2+ {[%clk 0:02:33]} 22. Nxg2 {[%clk 0:01:41]}  Bxg2 {[%clk 0:02:34]} 23. Rg1 {[%clk 0:01:40]}  Bd5 {[%clk 0:02:32]} 24. a3 {[%clk 0:01:11]}  Ke7 {[%clk 0:02:31]} 25. O-O-O {[%clk 0:01:10]}  Rad8 {[%clk 0:02:31]} 26. Bf5 {[%clk 0:01:05]}  Bb3 {[%clk 0:02:25]} 27. Bc2 {[%clk 0:00:47]}  Bxc2 {[%clk 0:02:20]} 28. Kxc2 {[%clk 0:00:48]}  Rxd1 {[%clk 0:02:21]} 29. Kxd1 {[%clk 0:00:46]}  Rd8+ {[%clk 0:02:14]} 30. Kc2 {[%clk 0:00:46]}  Rc8 {[%clk 0:02:14]} 31. b3 {[%clk 0:00:45]}  Kf6 {[%clk 0:02:10]} 32. Rd1 {[%clk 0:00:39]}  Ke6 {[%clk 0:02:09]} 33. Rd3 {[%clk 0:00:36]}  Rg8 {[%clk 0:02:09]} 34. Rh3 {[%clk 0:00:35]}  Rg2 {[%clk 0:02:09]} 35. Rxh7 {[%clk 0:00:18]}  Rxf2+ {[%clk 0:02:09]} 36. Kd3 {[%clk 0:00:19]}  Rf3+ {[%clk 0:02:05]} 37. Kd2 {[%clk 0:00:19]}  f5 {[%clk 0:02:02]} 38. c4 {[%clk 0:00:18]}  bxc4 {[%clk 0:02:02]} 39. bxc4 {[%clk 0:00:18]}  Rxa3 {[%clk 0:02:03]} 40. Rh6+ {[%clk 0:00:18]}  Ke7 {[%clk 0:02:03]} 41. h4 {[%clk 0:00:17]}  e4 {[%clk 0:02:02]} 42. c5 {[%clk 0:00:13]}  f4 {[%clk 0:02:02]} 43. c6 {[%clk 0:00:14]}  Rd3+ {[%clk 0:02:00]} 44. Ke2 {[%clk 0:00:14]}  f3+ {[%clk 0:02:01]} 45. Kf1 {[%clk 0:00:13]}  e3 {[%clk 0:01:59]} 46. Kg1 {[%clk 0:00:12]}  Rd1+ {[%clk 0:01:58]} 47. Kh2 {[%clk 0:00:12]}  f2 {[%clk 0:01:58]} 48. c7 {[%clk 0:00:07]}  f1=Q {[%clk 0:01:56]} 0-1


[Site "https://www.chess.com"]

[Event "Titled Tuesday Blitz February 15 Late 2022"]
[White "Timofeev, Artyom"]
[Black "Kushko, Dmitriy"]
[WhiteFideId "4140419"]
[BlackFideId "14162261"]
[WhiteElo "2583"]
[BlackElo "2225"]
[Result "1-0"]
[Round "01"]
[TimeControl "180+1"]
[Date "2022.02.15"]
[WhiteClock "0:00:27"]
[BlackClock "0:00:06"]

1. d4 {[%clk 0:03:00]}  Nf6 {[%clk 0:02:56]} 2. c4 {[%clk 0:03:00]}  g6 {[%clk 0:02:54]} 3. Nc3 {[%clk 0:02:59]}  Bg7 {[%clk 0:02:52]} 4. Nf3 {[%clk 0:02:52]}  O-O {[%clk 0:02:51]} 5. e4 {[%clk 0:02:51]}  d6 {[%clk 0:02:50]} 6. h3 {[%clk 0:02:51]}  e5 {[%clk 0:02:49]} 7. d5 {[%clk 0:02:51]}  a5 {[%clk 0:02:49]} 8. Be3 {[%clk 0:02:47]}  Na6 {[%clk 0:02:47]} 9. Be2 {[%clk 0:02:46]}  Nd7 {[%clk 0:02:47]} 10. g4 {[%clk 0:02:44]}  Ndc5 {[%clk 0:02:46]} 11. Nd2 {[%clk 0:02:40]}  f5 {[%clk 0:02:46]} 12. gxf5 {[%clk 0:02:39]}  gxf5 {[%clk 0:02:45]} 13. Rg1 {[%clk 0:02:36]}  Kh8 {[%clk 0:02:45]} 14. a3 {[%clk 0:02:20]}  Bd7 {[%clk 0:02:39]} 15. Qc2 {[%clk 0:02:20]}  f4 {[%clk 0:02:28]} 16. Bxc5 {[%clk 0:02:19]}  Nxc5 {[%clk 0:02:29]} 17. Bg4 {[%clk 0:02:18]}  f3 {[%clk 0:02:19]} 18. O-O-O {[%clk 0:02:14]}  Bh6 {[%clk 0:02:16]} 19. Kb1 {[%clk 0:02:14]}  a4 {[%clk 0:02:03]} 20. Nf1 {[%clk 0:02:06]}  Qh4 {[%clk 0:01:50]} 21. Ng3 {[%clk 0:02:05]}  Bxg4 {[%clk 0:01:29]} 22. hxg4 {[%clk 0:02:04]}  Nb3 {[%clk 0:01:20]} 23. Nf5 {[%clk 0:02:03]}  Qf6 {[%clk 0:01:19]} 24. Qd3 {[%clk 0:01:54]}  Bg5 {[%clk 0:01:10]} 25. Ka2 {[%clk 0:01:48]}  Nd4 {[%clk 0:00:42]} 26. Nb5 {[%clk 0:01:48]}  Nxf5 {[%clk 0:00:27]} 27. gxf5 {[%clk 0:01:48]}  Rf7 {[%clk 0:00:25]} 28. Qxf3 {[%clk 0:01:47]}  Rg8 {[%clk 0:00:24]} 29. Rh1 {[%clk 0:01:39]}  h6 {[%clk 0:00:21]} 30. Nc3 {[%clk 0:01:39]}  c6 {[%clk 0:00:17]} 31. dxc6 {[%clk 0:01:31]}  bxc6 {[%clk 0:00:18]} 32. Nxa4 {[%clk 0:01:31]}  Rb7 {[%clk 0:00:12]} 33. Qd3 {[%clk 0:01:24]}  Qf7 {[%clk 0:00:10]} 34. Ka1 {[%clk 0:01:13]}  Rd8 {[%clk 0:00:10]} 35. Nc3 {[%clk 0:01:11]}  Bf4 {[%clk 0:00:07]} 36. Ne2 {[%clk 0:01:04]}  Bg5 {[%clk 0:00:07]} 37. Qc3 {[%clk 0:01:02]}  Kg8 {[%clk 0:00:06]} 38. Rhg1 {[%clk 0:00:52]}  Kf8 {[%clk 0:00:06]} 39. Rg3 {[%clk 0:00:43]}  Rbd7 {[%clk 0:00:04]} 40. Rgd3 {[%clk 0:00:43]}  Qf6 {[%clk 0:00:04]} 41. Ka2 {[%clk 0:00:37]}  Qf7 {[%clk 0:00:04]} 42. Kb1 {[%clk 0:00:35]}  Qf6 {[%clk 0:00:05]} 43. f4 {[%clk 0:00:30]}  exf4 {[%clk 0:00:04]} 44. Qxf6+ {[%clk 0:00:29]}  Bxf6 {[%clk 0:00:05]} 45. Nxf4 {[%clk 0:00:30]}  Ke7 {[%clk 0:00:06]} 46. Ng6+ {[%clk 0:00:27]}  Kf7 {[%clk 0:00:06]} 47. e5 {[%clk 0:00:27]} 1-0


[Site "https://www.chess.com"]

[Event "Titled Tuesday Blitz February 15 Late 2022"]
[White "Tomiello, Mateus Costamilan"]
[Black "Wagner, Dennis"]
[WhiteFideId "22701958"]
[BlackFideId "24650684"]
[WhiteElo "1975"]
[BlackElo "2355"]
[Result "0-1"]
[Round "01"]
[TimeControl "180+1"]
[Date "2022.02.16"]
[WhiteClock "0:00:04"]
[BlackClock "0:01:07"]

1. e4 {[%clk 0:02:58]}  e5 {[%clk 0:02:59]} 2. Nf3 {[%clk 0:02:59]}  Nc6 {[%clk 0:03:00]} 3. Bb5 {[%clk 0:02:58]}  a6 {[%clk 0:03:01]} 4. Ba4 {[%clk 0:02:58]}  Nf6 {[%clk 0:03:01]} 5. O-O {[%clk 0:02:58]}  Be7 {[%clk 0:03:02]} 6. Re1 {[%clk 0:02:58]}  b5 {[%clk 0:03:02]} 7. Bb3 {[%clk 0:02:58]}  O-O {[%clk 0:03:03]} 8. h3 {[%clk 0:02:57]}  Bb7 {[%clk 0:03:02]} 9. c3 {[%clk 0:02:57]}  d5 {[%clk 0:03:01]} 10. exd5 {[%clk 0:02:50]}  Nxd5 {[%clk 0:03:02]} 11. d3 {[%clk 0:02:45]}  Qd7 {[%clk 0:03:02]} 12. a4 {[%clk 0:02:33]}  f6 {[%clk 0:02:53]} 13. Nbd2 {[%clk 0:02:25]}  Na5 {[%clk 0:02:52]} 14. Ba2 {[%clk 0:02:23]}  c5 {[%clk 0:02:53]} 15. d4 {[%clk 0:02:17]}  exd4 {[%clk 0:02:49]} 16. cxd4 {[%clk 0:02:15]}  c4 {[%clk 0:02:50]} 17. Ne4 {[%clk 0:02:10]}  Nb4 {[%clk 0:02:43]} 18. Bd2 {[%clk 0:02:01]}  Nac6 {[%clk 0:02:21]} 19. Nc5 {[%clk 0:01:36]}  Bxc5 {[%clk 0:02:20]} 20. dxc5 {[%clk 0:01:36]}  Nd3 {[%clk 0:02:19]} 21. Re2 {[%clk 0:01:24]}  Nxb2 {[%clk 0:02:15]} 22. Qc2 {[%clk 0:01:23]}  Nd3 {[%clk 0:02:04]} 23. Rd1 {[%clk 0:01:21]}  Kh8 {[%clk 0:01:53]} 24. Be3 {[%clk 0:01:08]}  Ncb4 {[%clk 0:01:52]} 25. Qb1 {[%clk 0:00:57]}  Bxf3 {[%clk 0:01:52]} 26. gxf3 {[%clk 0:00:53]}  Qxh3 {[%clk 0:01:52]} 27. Bd2 {[%clk 0:00:42]}  Nxa2 {[%clk 0:01:44]} 28. Qxa2 {[%clk 0:00:42]}  Qxf3 {[%clk 0:01:36]} 29. Be3 {[%clk 0:00:42]}  f5 {[%clk 0:01:30]} 30. Qd2 {[%clk 0:00:11]}  Rf6 {[%clk 0:01:27]} 31. Bg5 {[%clk 0:00:11]}  Rg6 {[%clk 0:01:27]} 32. Re7 {[%clk 0:00:07]}  Rg8 {[%clk 0:01:10]} 33. axb5 {[%clk 0:00:07]}  axb5 {[%clk 0:01:10]} 34. Rb1 {[%clk 0:00:04]}  Nf4 {[%clk 0:01:07]} 0-1


[Site "https://www.chess.com"]

[Event "Titled Tuesday Blitz February 15 Late 2022"]
[White "Toncheva, Nadya"]
[Black "Arabidze, Meri"]
[WhiteFideId "2924056"]
[BlackFideId "13604040"]
[WhiteElo "1920"]
[BlackElo "2329"]
[Result "1-0"]
[Round "01"]
[TimeControl "180+1"]
[Date "2022.02.16"]
[WhiteClock "0:00:07"]
[BlackClock "0:00:14"]

1. e4 {[%clk 0:02:55]}  c5 {[%clk 0:02:59]} 2. Nf3 {[%clk 0:02:55]}  e6 {[%clk 0:03:00]} 3. d4 {[%clk 0:02:55]}  cxd4 {[%clk 0:03:00]} 4. Nxd4 {[%clk 0:02:56]}  Nc6 {[%clk 0:03:01]} 5. Nc3 {[%clk 0:02:56]}  a6 {[%clk 0:03:01]} 6. Nxc6 {[%clk 0:02:56]}  bxc6 {[%clk 0:03:01]} 7. Bd3 {[%clk 0:02:54]}  d5 {[%clk 0:03:02]} 8. O-O {[%clk 0:02:54]}  Nf6 {[%clk 0:03:02]} 9. Re1 {[%clk 0:02:52]}  Bb7 {[%clk 0:03:01]} 10. f4 {[%clk 0:02:49]}  Be7 {[%clk 0:03:00]} 11. Qf3 {[%clk 0:02:49]}  O-O {[%clk 0:02:59]} 12. Qh3 {[%clk 0:02:41]}  g6 {[%clk 0:02:49]} 13. Bd2 {[%clk 0:02:14]}  c5 {[%clk 0:02:44]} 14. b3 {[%clk 0:01:53]}  c4 {[%clk 0:02:38]} 15. e5 {[%clk 0:01:26]}  cxd3 {[%clk 0:02:34]} 16. exf6 {[%clk 0:01:26]}  Bxf6 {[%clk 0:02:34]} 17. cxd3 {[%clk 0:01:26]}  Rc8 {[%clk 0:02:32]} 18. Rac1 {[%clk 0:01:23]}  Bg7 {[%clk 0:02:22]} 19. Na4 {[%clk 0:01:13]}  Qd6 {[%clk 0:02:19]} 20. Qe3 {[%clk 0:01:07]}  d4 {[%clk 0:02:11]} 21. Qf2 {[%clk 0:01:02]}  Qd5 {[%clk 0:02:05]} 22. Rc4 {[%clk 0:00:58]}  Rce8 {[%clk 0:01:45]} 23. Bb4 {[%clk 0:00:55]}  e5 {[%clk 0:01:37]} 24. Bxf8 {[%clk 0:00:50]}  Rxf8 {[%clk 0:01:36]} 25. fxe5 {[%clk 0:00:47]}  Rd8 {[%clk 0:01:16]} 26. Nc5 {[%clk 0:00:37]}  Ba8 {[%clk 0:01:04]} 27. Nxa6 {[%clk 0:00:34]}  Bh6 {[%clk 0:00:57]} 28. Nc7 {[%clk 0:00:28]}  Qb7 {[%clk 0:00:51]} 29. Nxa8 {[%clk 0:00:22]}  Be3 {[%clk 0:00:46]} 30. Rxe3 {[%clk 0:00:20]}  dxe3 {[%clk 0:00:47]} 31. Qf6 {[%clk 0:00:14]}  Qxa8 {[%clk 0:00:45]} 32. Rc7 {[%clk 0:00:12]}  Rf8 {[%clk 0:00:44]} 33. e6 {[%clk 0:00:12]}  h5 {[%clk 0:00:27]} 34. Rxf7 {[%clk 0:00:08]}  Rxf7 {[%clk 0:00:20]} 35. Qxf7+ {[%clk 0:00:08]}  Kh8 {[%clk 0:00:20]} 36. e7 {[%clk 0:00:07]}  Qg8 {[%clk 0:00:14]} 37. e8=Q {[%clk 0:00:07]} 1-0


[Site "https://www.chess.com"]

[Event "Titled Tuesday Blitz February 15 Late 2022"]
[White "Urbina Perez, Juan Antonio"]
[Black "Chigaev, Maksim"]
[WhiteFideId "2217368"]
[BlackFideId "4108116"]
[WhiteElo "2192"]
[BlackElo "2502"]
[Result "0-1"]
[Round "01"]
[TimeControl "180+1"]
[Date "2022.02.15"]
[WhiteClock "0:01:11"]
[BlackClock "0:01:55"]

1. d4 {[%clk 0:02:59]}  Nf6 {[%clk 0:02:59]} 2. Nf3 {[%clk 0:02:55]}  g6 {[%clk 0:02:59]} 3. c4 {[%clk 0:02:54]}  Bg7 {[%clk 0:02:59]} 4. Nc3 {[%clk 0:02:55]}  O-O {[%clk 0:02:59]} 5. e4 {[%clk 0:02:56]}  d6 {[%clk 0:03:00]} 6. h3 {[%clk 0:02:56]}  Qe8 {[%clk 0:02:58]} 7. Be3 {[%clk 0:02:49]}  Na6 {[%clk 0:02:58]} 8. Be2 {[%clk 0:02:48]}  e5 {[%clk 0:02:58]} 9. d5 {[%clk 0:02:43]}  Nh5 {[%clk 0:02:58]} 10. Qd2 {[%clk 0:02:39]}  Nf4 {[%clk 0:02:55]} 11. O-O {[%clk 0:02:32]}  Nxe2+ {[%clk 0:02:52]} 12. Qxe2 {[%clk 0:02:31]}  f5 {[%clk 0:02:52]} 13. exf5 {[%clk 0:02:22]}  gxf5 {[%clk 0:02:51]} 14. Ne1 {[%clk 0:02:15]}  f4 {[%clk 0:02:45]} 15. Bd2 {[%clk 0:02:14]}  Qg6 {[%clk 0:02:45]} 16. Kh1 {[%clk 0:02:08]}  Bf5 {[%clk 0:02:39]} 17. f3 {[%clk 0:02:07]}  Rae8 {[%clk 0:02:35]} 18. Ne4 {[%clk 0:02:05]}  Bxe4 {[%clk 0:02:36]} 19. fxe4 {[%clk 0:02:04]}  Nc5 {[%clk 0:02:36]} 20. Nf3 {[%clk 0:01:51]}  Qxe4 {[%clk 0:02:35]} 21. Qxe4 {[%clk 0:01:47]}  Nxe4 {[%clk 0:02:36]} 22. Rfe1 {[%clk 0:01:47]}  Ng3+ {[%clk 0:02:30]} 23. Kh2 {[%clk 0:01:44]}  e4 {[%clk 0:02:09]} 24. Ng5 {[%clk 0:01:44]}  e3 {[%clk 0:02:05]} 25. Bc3 {[%clk 0:01:23]}  Bxc3 {[%clk 0:02:03]} 26. bxc3 {[%clk 0:01:24]}  Ne4 {[%clk 0:02:04]} 27. Ne6 {[%clk 0:01:23]}  Rf7 {[%clk 0:02:04]} 28. Rab1 {[%clk 0:01:13]}  b6 {[%clk 0:01:59]} 29. Rf1 {[%clk 0:01:13]}  Nd2 {[%clk 0:01:59]} 30. Rbd1 {[%clk 0:01:11]}  e2 {[%clk 0:01:55]} 0-1


[Site "https://www.chess.com"]